Cogmind - Beta 16.1 @@@ ROGUE MODE // 2026.03.21 @ 13:38:38 // Winter2019/RPGLIKE Player: john Result: Destroyed by as-82785 with Assembled Heavy Rifle Performance ------------- Evolutions (0) 0 Regions Visited (3) 600 Robots Destroyed (14) 70 Value Destroyed (352) 352 Prototype IDs (23) 460 Alien Tech Used (0) 0 Bonus (211) 211 TOTAL SCORE: 1693 Bonus ------- Follower Combat Kills 25 Aligned with FarCom 300 Friendly Fire -114 Cogmind --------- Core Integrity 0/1000 Matter 170/300 Energy 160/160 System Corruption 0% Temperature Cool (20) Movement Walking (120) Location -10/Exiles Parts ------- > --- POWER (1) -------- Light Nuclear Core > --- PROPULSION (2) --- Aluminum Leg Aluminum Leg > --- UTILITY (2) ------ Trap Reconfigurator > --- WEAPON (1) ------- Makeshift Shrapnel Gun > --- INVENTORY (2) ---- ECM Suite Cloak of Protection Peak State ------------ > --- POWER ------------ Light Nuclear Core > --- PROPULSION ------- Aluminum Leg Aluminum Leg > --- UTILITY ---------- Cloak of Protection Trap Reconfigurator > --- WEAPON ----------- Guided Plasma Cannon > --- INVENTORY -------- ECM Suite [Rating: 30] Favorites ----------- Power Light Nuclear Core Engine Ion Engine Power Core Light Nuclear Core Propulsion Aluminum Leg Leg Aluminum Leg Utility Tractor Beam Device Tractor Beam Weapon Makeshift Shrapnel Gun Energy Gun Medium Laser Energy Cannon Particle Cannon Ballistic Gun Makeshift Shrapnel Gun Launcher Rocket Launcher Build | -11 -10 -10 -10 ------- Run | Yrd Mat Min Exi Slots Evolved 2 | 2 . . . Power . | . . . . Propulsion 1 | 1 . . . Utility 1 | 1 . . . Weapon . | . . . . Parts Attached 15 | 5 3 4 3 Power 3 | 1 1 1 . Engine 2 | 1 1 . . Core 1 | . . 1 . Reactor . | . . . . Propulsion 2 | 2 . . . Treads . | . . . . Leg 2 | 2 . . . Wheel . | . . . . Hover . | . . . . Flight . | . . . . Utility 5 | 1 1 1 2 Device 5 | 1 1 1 2 Storage . | . . . . Processor . | . . . . Hackware . | . . . . Protection . | . . . . Artifact . | . . . . Weapon 5 | 1 1 2 1 Energy Gun 1 | 1 . . . Energy Cannon 2 | . 1 . 1 Ballistic Gun 1 | . . 1 . Ballistic Cannon . | . . . . Launcher 1 | . . 1 . Special Weapon . | . . . . Impact Weapon . | . . . . Slashing Weapon . | . . . . Piercing Weapon . | . . . . Special Melee Weapon . | . . . . Unidentified Prototypes 3 | . . . 3 Parts Lost 1 | . . . 1 Power . | . . . . Propulsion . | . . . . Utility 1 | . . . 1 Weapon . | . . . . Highest Loss Streak 1 | . . . 1 To Critical Strikes 1 | . . . 1 Average Backups 1 | . . . 1 Power . | . . . . Propulsion . | . . . . Utility . | . . . 1 Weapon . | . . . . Tool/Special . | . . . . Unused Backups 2 | . . 1 1 Power . | . . . . Propulsion . | . . . . Utility 1 | . . . 1 Weapon 1 | . . 1 . Tool/Special . | . . . . Average Slot Usage (%) 98 | . 89 100 99 Engine 7 | . 16 15 . Core 8 | . . . 16 Leg 33 | . 33 33 33 Device 31 | . 22 33 32 Energy Cannon 3 | . 15 3 . Ballistic Gun 11 | . . 8 15 Launcher 1 | . . 3 . Peak Build Rating 30 | 5 7 11 30 Average Rating 12 | 3 6 8 18 On Entrance 5 | . 5 7 11 Avg Prop Armor Cover (%) . | . . . . Naked Turns . | . . . . Heaviest Build 24 | 6 11 11 24 Greatest Support 1020 | 1020 1020 1020 1020 Greatest Overweight (x) . | . . . . Average Overweight (x) . | . . . . Largest Inventory Capacity 2 | 1 1 1 2 Average Capacity 1 | 1 1 1 1 Most Carried 2 | . 1 1 2 Average Carried 1 | . . . 1 Final Capacity 2 | 1 1 1 2 Final Carried 2 | . 1 1 2 Class Distribution -------------------- 100% | Mutant Dominant Class ---------------- Mutant | -10/Materials Mutant | -10/Mines Mutant | -10/Exiles Resources | -11 -10 -10 -10 ----------- Run | Yrd Mat Min Exi Matter Collected 460 | 65 225 170 . Remotely 395 | . 225 170 . Salvage Created 511 | 103 333 75 . Parts 30 | 5 19 6 . Haulers Intercepted . | . . . . Recyclers Shooed 1 | 1 . . . Parts Field Recycled . | . . . . Retrieved Matter . | . . . . Parts Self-Destructed . | . . . . Prevented . | . . . . Parts Restored . | . . . . Kills | -11 -10 -10 -10 ------- Run | Yrd Mat Min Exi Combat Hostiles Destroyed 7 | . 5 2 . Guns 1 | . . 1 . Cannons 5 | . 5 . . AOE 1 | . . 1 . Classes Destroyed 5 | 2 3 . . Tunneler 3 | 2 . 1 . Recycler 2 | 1 1 . . Operator 1 | . 1 . . Watcher 1 | . 1 . . Grunt 7 | . 5 2 . Best Kill Streak 2 | 2 2 1 . Combat Bots Only 2 | . 2 1 . Max Kills in Single Turn 1 | 1 1 1 . Gunslinging . | . . . . Exploded 1 | . . 1 . Melee . | . . . . Uniques/NPCs Destroyed . | . . . . Combat | -11 -10 -10 -10 -------- Run | Yrd Mat Min Exi Hostile Shots Fired 128 | . 13 12 103 Missed 26 | . 3 5 18 Hits 102 | . 10 7 85 Projectile 102 | . 10 7 85 Critical Strikes 18 | . . . 18 Part Disruptions 1 | . . . 1 Damage Taken 1387 | . 119 83 1185 Core 1137 | . 98 67 972 Absorbed by Shields . | . . . . Redirected to Core 829 | . 77 56 696 Ignored by Resistances 109 | . 10 7 92 Core Remaining (%) 100 | 100 . . . Volleys Fired 72 | 12 28 15 17 Largest 1 | 1 1 1 1 Hottest 68 | 50 68 33 24 Shots Fired 72 | 12 28 15 17 Gun 36 | 12 . 7 17 Cannon 28 | . 28 . . Launcher 8 | . . 8 . Special . | . . . . Kinetic 24 | . . 7 17 Thermal 40 | 12 28 . . Explosive 8 | . . 8 . Electromagnetic . | . . . . Robot Hit Streak 9 | 6 8 3 9 Robot Miss Streak 4 | 2 2 4 3 Penetration Max . | . . . . Secondary Targets . | . . . . Shots Hit Robots 53 | 8 20 8 17 Core Hits 29 | 4 10 8 7 Critical Kills . | . . . . Critical Parts Destroyed . | . . . . Critical Strikes 1 | 1 . . . Burn 1 | 1 . . . Melee Attacks . | . . . . Impact . | . . . . Slashing . | . . . . Piercing . | . . . . Sneak Attacks . | . . . . Combat Hostiles . | . . . . Follow-up Attacks . | . . . . Damage Inflicted 1373 | 114 429 421 409 Guns 606 | 114 . 83 409 Cannons 429 | . 429 . . Explosions 332 | . . 332 . Melee . | . . . . Ramming 6 | . . 6 . Kinetic 492 | . . 83 409 Thermal 543 | 114 429 . . Explosive 332 | . . 332 . Electromagnetic . | . . . . Impact . | . . . . Slashing . | . . . . Piercing . | . . . . Highest Corruption . | . . . . Average Corruption . | . . . . Corruption Purged . | . . . . Corruption Blocked . | . . . . Overload Shots . | . . . . Overflow Damage 28 | . 17 11 . Projectiles 17 | . 17 . . Explosions 11 | . . 11 . Melee . | . . . . Knockbacks . | . . . . Impact . | . . . . Kinetic . | . . . . Secondary . | . . . . Self-Inflicted Damage . | . . . . Shots . | . . . . Rammed . | . . . . Targets Rammed 1 | . . 1 . Kicked 1 | . . 1 . Crushed . | . . . . Highest Temperature 36 | . 7 . 36 Average Temperature 7 | . 3 . 20 Received Heat Transfer 463 | . 72 51 340 Siege Activations . | . . . . Martial Activations . | . . . . Shielding Activations . | . . . . Robots Disrupted . | . . . . Combat Hostiles . | . . . . Robots Corrupted . | . . . . Combat Hostiles . | . . . . Parts Fried . | . . . . Impact Corruptions . | . . . . Robots Melted . | . . . . Combat Hostiles . | . . . . Parts Melted 5 | 2 3 . . Heat Transferred 1147 | 407 740 . . Parts Sabotaged . | . . . . Parts Stolen . | . . . . Parts Stripped . | . . . . Power Chain Reactions . | . . . . Alert | -11 -10 -10 -10 ------- Run | Yrd Mat Min Exi Maximum Alert Level . | . . . . Low Security (%) 100 | 100 100 100 . Level 1 . | . . . . Level 2 . | . . . . Level 3 . | . . . . Level 4 . | . . . . Level 5 . | . . . . High Security . | . . . . Max Security . | . . . . Peak Influence 84 | 10 84 80 . Initial 28 | . . 28 . Average 20 | 2 31 17 . Influence Increases 289 | 15 154 120 . Destroy 0b10 Robot/C 160 | . 100 60 . Destroy 0b10 Robot/NC 35 | 15 15 5 . Destroy Leader 32 | . 22 10 . Allied During Kill 3 | . . 3 . Successful Hack 2 | . 2 . . Disable Machine 15 | . 15 . . Destroy Structure 42 | . . 42 . Influence Decreases 289 | 15 80 194 . Entered New Map 46 | . . 46 . Time Decay 243 | 15 80 148 . Squads Dispatched 1 | . 1 . . Investigation . | . . . . Extermination . | . . . . Reinforcement 1 | . 1 . . Assault . | . . . . Garrison . | . . . . Intercept . | . . . . Searches Triggered . | . . . . Construction Impeded . | . . . . Haulers Reinforced . | . . . . Active Scanning Responses . | . . . . Cargo Convoy Interrupts . | . . . . Stealth | -11 -10 -10 -10 --------- Run | Yrd Mat Min Exi Distress Signals . | . . . . Communications Jammed . | . . . . Distress Signals . | . . . . Times Spotted 19 | . 7 4 8 Peak Tracking Total 9 | . 2 2 9 Tactical Retreats . | . . . . Traps | -11 -10 -10 -10 ------- Run | Yrd Mat Min Exi Traps Triggered . | . . . . Indirectly . | . . . . Trap Hack Attempts . | . . . . Triggered . | . . . . Disarmed . | . . . . Reprogrammed . | . . . . Reused . | . . . . Traps Extracted . | . . . . Installed . | . . . . Triggered . | . . . . Machines | -11 -10 -10 -10 ---------- Run | Yrd Mat Min Exi Machines Disabled 1 | . 1 . . Max in Single Turn 1 | . 1 . . Machines Repaired . | . . . . Machines Dismantled . | . . . . Machines Sabotaged . | . . . . Overloaded Fab Kills . | . . . . Hacking | -11 -10 -10 -10 --------- Run | Yrd Mat Min Exi Machines Accessed 2 | . 1 . 1 Terminals 1 | . 1 . . Fabricators . | . . . . Repair Stations . | . . . . Recycling Units . | . . . . Scanalyzers . | . . . . Garrison Access . | . . . . Total Hacks 2 | . 1 . 1 Successful 2 | . 1 . 1 Failed . | . . . . Catastrophic . | . . . . Database Lockouts . | . . . . Manual 3 | . . . 3 Terminals 1 | . 1 . . Fabricators . | . . . . Repair Stations . | . . . . Recycling Units . | . . . . Scanalyzers . | . . . . Garrison Access . | . . . . Terminal Hacks 2 | . 1 . 1 Record 1 | . 1 . . Proto ID Catalog 1 | . . . 1 Fabricator Hacks . | . . . . Repair Station Hacks . | . . . . Recycling Unit Hacks . | . . . . Scanalyzer . | . . . . Garrison Access Hacks . | . . . . Unauthorized Hacks . | . . . . Terminals . | . . . . Fabricators . | . . . . Repair Stations . | . . . . Recycling Units . | . . . . Scanalyzers . | . . . . Garrison Access . | . . . . Data Cores Recovered . | . . . . Used . | . . . . Hacking Detections . | . . . . Full Trace Events . | . . . . Feedback Events . | . . . . Feedback Blocked . | . . . . Robot Schematics Acquired . | . . . . Robots Built . | . . . . Authchips . | . . . . Time . | . . . . Total Robot Build Rating . | . . . . Part Schematics Acquired . | . . . . Parts Built . | . . . . Authchips . | . . . . Time . | . . . . Total Part Build Rating . | . . . . Part Studies Acquired . | . . . . Parts Repaired . | . . . . Time . | . . . . Parts Recycled . | . . . . Recycled Matter . | . . . . Retrieved Matter . | . . . . Retrieved Components . | . . . . Parts Scanalyzed . | . . . . Part Schematics Acquired . | . . . . Parts Damaged . | . . . . Bothacking | -11 -10 -10 -10 ------------ Run | Yrd Mat Min Exi Used RIF Installer . | . . . . Robots Hacked . | . . . . Non-combat . | . . . . Combat . | . . . . Robot Hacks Applied . | . . . . Relay Couplers Released . | . . . . Fabnet Peak Effective % . | . . . . Robots Rewired . | . . . . Allies Hacked . | . . . . Hacks Repelled . | . . . . Allies | -11 -10 -10 -10 -------- Run | Yrd Mat Min Exi Total Allies 1 | . . 1 . Largest Group 1 | . . 1 . Highest-Rated Group 31 | . . 31 . Highest-Rated Ally 31 | . . 31 . Total Orders . | . . . . Ally Attacks 4 | . . 4 . Total Damage 42 | . . 42 . Kills 1 | . . 1 . Allies Corrupted . | . . . . Allies Melted . | . . . . Intel | -11 -10 -10 -10 ------- Run | Yrd Mat Min Exi Active Infowar (turns) 1860 | 4 277 620 959 Sensors 930 | . . 117 813 Seismic 784 | 4 277 503 . Cloaking 146 | . . . 146 Robot Analysis Total . | . . . . Derelict Logs Recovered 1 | . . 1 . Drone Launches . | . . . . Drone Recoveries . | . . . . Exploration | -11 -10 -10 -10 ------------- Run | Yrd Mat Min Exi Turns Passed 1933 | 60 277 623 973 Spaces Moved 1248 | 25 144 474 605 Core 4 | 4 . . . Treads . | . . . . Legs 1244 | 21 144 474 605 Wheels . | . . . . Hover . | . . . . Flight . | . . . . Fastest Speed 50 | 50 120 120 120 Average Speed 119 | 108 120 120 120 Slowest Speed 120 | 120 120 120 120 Overloaded Moves . | . . . . Propulsion Burnouts . | . . . . Robots Hopped . | . . . . Potential Cave-ins . | . . . . Cave-ins Triggered . | . . . . Exploration Rate (%) 54 | 3 26 95 94 Regions Visited 3 Branch Regions 2 Pre-discovered Areas . | . . . . Known Exits Taken . | . . . . Unknown Exits Taken 3 | 1 1 1 . Scrap Searched 2 | . . 2 . Spaces Dug . | . . . . Terrain Destroyed 60 | . . 60 . Melee . | . . . . Projectile . | . . . . AOE 60 | . . 60 . Terrain Rammed . | . . . . Walls Destroyed . | . . . . Machines Disabled . | . . . . Actions | -11 -10 -10 -10 --------- Run | Yrd Mat Min Exi Total 1608 | 43 219 512 834 Wait 152 | 2 36 8 106 Move 1245 | 24 143 473 605 Hop . | . . . . Pick Up 5 | . 1 2 2 Fast Attach 8 | 5 2 1 . Attach . | . . . . Detach . | . . . . Swap 11 | . 2 4 5 Drop 6 | . 2 3 1 Fire 72 | 12 28 15 17 Melee . | . . . . Ram . | . . . . Kick 1 | . . 1 . Crush . | . . . . Escape Stasis . | . . . . Rewire 98 | . . . 98 Trap . | . . . . Miscellaneous 10 | . 5 5 . Route ------- -11/Scrapyard -10/Materials -10/Mines (discovered 3 exits: [*Mat x2] / *Exi) -10/Exiles (discovered 2 exits: *Min x2) History --------- Turn | Location | Event 1 | -11/Scrapyard | Upgraded with Propulsion slot (x1) 1 | -11/Scrapyard | Upgraded with Utility slot (x1) 6 | -11/Scrapyard | Discovered new exit (range 16) 61 | -11/Scrapyard | Entered Materials 301 | -10/Materials | Build established: Mutant 321 | -10/Materials | Discovered new exit (range 15) 338 | -10/Materials | Entered Mines 350 | -10/Mines | Received a Mining Laser from a helpful Derelict 435 | -10/Mines | Discovered new exit (range 8) 471 | -10/Mines | Received a Rocket Launcher from a helpful Derelict 613 | -10/Mines | A weapon hastily lodged in a ceiling crevice suddenly fell to the ground 900 | -10/Mines | Reached level 2 912 | -10/Mines | Deemed a non-threat by the Exiles lab entrance 912 | -10/Mines | Discovered new exit (range 5) 941 | -10/Mines | Discovered new exit (range 7) 961 | -10/Mines | Entered Exiles 962 | -10/Exiles | Identified exit to Mines 995 | -10/Exiles | Met 8R-AWN 1013 | -10/Exiles | Met EX-HEX 1048 | -10/Exiles | Met EX-BIN 1067 | -10/Exiles | Aligned with FarCom system 1068 | -10/Exiles | Given EX-Vault access code 1143 | -10/Exiles | Opened EX-Vault 1149 | -10/Exiles | Found Prototype Device 1149 | -10/Exiles | Identified Cloak of Protection 1156 | -10/Exiles | Found Prototype Device 1156 | -10/Exiles | Identified Trap Reconfigurator 1160 | -10/Exiles | Found Prototype Energy Cannon 1160 | -10/Exiles | Identified Gui. Plasma Cannon 1325 | -10/Exiles | Warned to stay clear of 0b10 Research branches 1354 | -10/Exiles | Met EX-DEC 1550 | -10/Exiles | Visited The Gauntlet 1902 | -10/Exiles | Attacked by the Exiles 1920 | -10/Exiles | Core integrity fell below 50% 1930 | -10/Exiles | Core integrity fell below 20% 1934 | -10/Exiles | Destroyed by as-82785 with Assembled Heavy Rifle Last Messages --------------- 01916_ HV Slug penetrates Earth. 01918_ Penetrated by HV Slug. 01918_ HV Slug penetrates Earth. 01918_ Penetrated by HV Slug. 01918_ HV Slug penetrates Earth. 01920_ Critical hit (Burn: +80). 01920_ Penetrated by HV Slug. 01920_ HV Slug penetrates Earth. 01920_ Penetrated by HV Slug. 01920_ Critical hit (Destroy). 01920_ Sensor Array destroyed. 01920_ HV Slug penetrates Earth. 01923_ Penetrated by HV Slug. 01923_ HV Slug penetrates Earth. 01923_ Penetrated by HV Slug. 01923_ HV Slug penetrates Earth. 01925_ Penetrated by HV Slug. 01929_ Destroyed Prototype Protection. 01930_ Machine disabled. 01932_ Penetrated by HV Slug. Map ----- +----------------------------------------------------+ | """#?????????????????????????????????????????????? | | """#?????????????????????????????????????????????? | | """#?????????????????????????????????????????????? | | """#?????????????????????????????????????????????? | | """#?????????????????????????????????????????????? | | """#?????????????????????????????????????????????? | | """#?????????????????????????????????????????????? | | """## ???????????????????????????????????????????? | | """"""???????????????????????????????????????????? | | """###???????????????????????????????????????????? | | """""????????????????????????????????????????????? | | # ????????????????????????????????????????????? | | """#?????????????????????????????????????????????? | | ####???????????????????????????????????????????### | | ??????????????????????????????????????????????## | | ?????????????????????????????????????????????## | | ?????????????????????????????????????????????# > | | ##########???????????????????????????????????# | | """""""""##??????????????????????????????????# | | " """ """"##????????????????????????????????## # | | "" " #???????????????????????????????## # | | " """#???????????????????????????????# | | " "#???????????#####???????????????# | | " "##?????????##" #??????????????## | | ""###???????#" g #?????????????## # | | """#??????## @ ##????????????# ## | | "#????### ###????????### ##? | | ##???# aa ########## #?? | | ##?## a #""""## ##?? | | ### a * ##?? | | aaa #; * #?? | | ##;# ##? | | ""##;"""""#### ## | | #"""###;######??#### * | | ######?# #??????????##### | | ##??????? ???????????????### | | " ##???????? ?????????????????### | | """ ""#????????? ???????????????????### | | ""#" "##????????? ????????????????????#" | | """##"""""""##?????????? ????????????????????#### | | """###########??????????? ???????????????????????# | | ####????????????????????? ???????????????????????# | | ?????????????????????????????????????????????????? | | ?????????????????????????????????????????????????? | | ?????????????????????????????????????????????????? | | ?????????????????????????????????????????????????? | | ?????????????????????????????????????????????????? | | ?????????????????????????????????????????????????? | | ?????????????????????????????????????????????????? | | ?????????????????????????????????????????????????? | +----------------------------------------------------+ Best States ------------- Heat Dissipation 43 Energy Generation 19 Energy Capacity 250 Matter Stores 300 Matter Capacity 300 Sight Range 17 Robot Scan Range 20 Terrain Scan Density 210 Cloak Strength 5 Resistance: KI 5 Resistance: TH 5 Resistance: EX 5 Evasion (%) 55 Item Schematics ----------------- None Robot Schematics ------------------ None Fabricated ------------ Nothing Repaired ---------- Nothing Studied --------- None Alien Tech Used ----------------- None Achievements -------------- Sixth Sense Challenges ------------ None RPGLIKE | -11 -10 -10 -10 --------- Run | Yrd Mat Min Exi Levels Raised 1 | . . 1 . XP Earned 4887 | 3000 675 862 350 XP Spent 3955 | 2975 . 480 500 Upgrades 27 | 18 . 8 1 Propulsion Slot 1 | 1 . . . Utility Slot 1 | 1 . . . Core Integrity 8 | . . 8 . Heat Dissipation 3 | 3 . . . Energy Generation 1 | 1 . . . Mass Support 1 | 1 . . . Inventory Capacity 2 | 1 . . 1 Sight Range 1 | 1 . . . Sensor Range 3 | 3 . . . Terrain Scan Density 2 | 2 . . . KI Resistance % 1 | 1 . . . TH Resistance % 1 | 1 . . . EX Resistance % 1 | 1 . . . TH Damage % 1 | 1 . . . Protomatter Created 75 | . 75 . . Integrity Restored 144 | . 61 83 . Core 123 | . 52 71 . Parts 21 | . 9 12 . Protomatter Decayed . | . . . . Game ------ Seed AmyLove Manual? 1 Play Time 00:39:28 Cumulative 32.7 hours Start 2026.03.21 @ 12:47:08 End 2026.03.21 @ 13:38:38 Sessions 1 Manual Loads 0 Difficulty Rogue Special Mode Winter2019/RPGLIKE Game No. 22 Rogue 19 Adventurer 0 Explorer 3 Win Type - Total 3 Types 1/0/0/2/0/0/0/0/0/0 Lore% 17 Gallery% 25 Achievement% 31 Wizard Run 0 Options --------- Layout 0 ASCII 0 Keyboard 1 Movement Numpad Keybinds 0 Fullscreen 1 Font 20/Smallcaps Map View 66x50 Zoom Use 4% Tactical HUD 1 Map Filters NONE Filters NONE Steam 1 RUN: ea3ed58e-bf36-4205-be55-4f10db159b8c